bitfinex-derivatives/quotes_ETHF0:USTF0_20250709
["timestamp","ask_amount","ask_price","bid_price","bid_amount"]
[1752065981925,4.51830743,2661.3,2661.2,0.75144]
[1752065984030,4.51789263,2661.3,2661.2,0.75144]
[1752065987732,5.26930263,2661.3,2661.2,0.75144]
[1752065989432,4.51789263,2661.3,2661.2,0.75144]
[1752065989831,5.19413263,2661.3,2661.2,0.75144]
[1752065991732,0.75144,2661.2,2661.1,1.42995]
[1752065991928,2.82999263,2661.2,2661.1,0.75147]
[1752065992132,4.27784263,2661.2,2661.1,0.75147]
[1752065993035,0.75148,2661.1,2661.0,0.75148]
[1752065993235,6.78927263,2661.1,2661.0,0.75148]
[1752065993430,8.40117263,2661.1,2661.0,0.75148]
[1752065994434,7.64969263,2661.1,2661.0,0.75148]
[1752065994737,8.40116263,2661.1,2661.0,0.75148]
[1752065994931,8.40116263,2661.1,2660.5,2.17175618]
[1752065994932,7.64969263,2661.1,2660.5,1.87908]
[1752065995137,0.75156,2660.8,2660.7,0.75157]
[1752065995332,1.43136,2660.8,2660.7,0.75157]
[1752065995630,3.20279263,2660.8,2660.7,1.41177]
[1752065996230,2.27269175,2660.8,2660.7,2.50484964]
[1752065996429,3.2078,2661.1,2661.0,0.7515]
[1752065996632,2.27260252,2661.1,2661.0,1.84457964]
[1752065996831,3.02407252,2661.1,2661.0,0.7515]
[1752065997330,2.27260252,2661.1,2661.0,0.7515]
[1752065997525,2.27260252,2661.1,2660.8,0.6717]
[1752065997738,0.6798,2661.1,2661.0,0.7515]
[1752065998037,2.2724977,2661.1,2661.0,1.4117]
[1752065999940,3.2045977,2661.1,2661.0,1.4117]
[1752066000141,3.2045977,2661.1,2661.0,0.7515]
[1752066000341,3.9560677,2661.1,2661.0,0.6602]
[1752066000646,3.2045977,2661.1,2661.0,1.4117]
[1752066000845,1.5926977,2661.1,2661.0,1.4117]
[1752066001345,1.87813,2661.9,2661.0,1.4117]
[1752066001346,3.36573011,2662.3,2661.2,3.75721]
[1752066001538,3.2078,2662.8,2662.2,4.30087964]
[1752066001539,2.2254,2662.8,2662.2,4.30087964]
[1752066001841,2.2254,2662.8,2662.7,1.84409964]
[1752066002047,2.2254,2662.8,2662.5,1.09307964]
[1752066002048,2.9052,2662.8,2662.5,1.09307964]
[1752066002241,2.9052,2662.8,2662.7,0.75102]
[1752066002545,0.6798,2662.8,2662.7,3.2078]
[1752066002737,0.6988,2663.5,2662.9,0.75096]
[1752066003044,0.9321,2663.4,2663.3,0.75085]
[1752066003247,0.9321,2663.4,2663.2,3.2078]
[1752066003445,0.6798,2663.5,2663.4,0.75082]
[1752066004639,0.6798,2663.5,2663.3,0.75083]
[1752066004837,0.6798,2663.5,2663.4,0.75082]
[1752066006042,0.9321,2663.8,2663.2,5.27262192]
[1752066006350,1.43054,2663.7,2663.4,0.75081]
[1752066006540,1.43054,2663.7,2663.5,0.75079]
[1752066006541,1.9227,2663.7,2663.5,0.75079]
[1752066006742,1.2429,2663.7,2663.6,0.75076]
[1752066006950,2.8548,2663.7,2663.6,0.75076]
[1752066007144,0.9321,2664.2,2663.7,1.87684]
[1752066007342,0.6798,2663.9,2663.8,2.81553192]
[1752066007541,0.6798,2663.9,2663.8,6.02333192]
[1752066007744,0.9321,2664.2,2664.1,0.75062]
[1752066007951,1.6119,2664.2,2664.1,0.75062]
[1752066008343,1.6119,2664.2,2663.8,3.2078]
[1752066008548,2.175,2664.1,2664.0,0.75063]
[1752066008749,2.8548,2664.1,2664.0,0.75063]
[1752066009447,0.6798,2664.1,2664.0,0.75063]
[1752066010547,1.3173,2664.5,2663.8,5.27262192]
[1752066010748,0.6798,2664.5,2664.4,0.75054]
[1752066011955,1.6119,2664.5,2663.9,3.2078]
[1752066012151,2.06785,2664.4,2664.1,0.75061]
[1752066012352,0.9321,2664.3,2664.2,0.75059]
[1752066012552,2.2494,2664.3,2664.2,0.75059]
[1752066012747,2.9292,2664.3,2664.2,0.75059]
[1752066013054,1.9971,2664.3,2664.2,3.95839]
[1752066013259,0.6798,2664.3,2664.2,3.95839]
[1752066013759,2.2496,2664.6,2664.5,0.75051]
[1752066013961,2.9294,2664.6,2664.5,0.75051]
[1752066014656,0.6798,2664.6,2664.5,0.75051]
[1752066014959,0.6798,2664.6,2664.5,3.95831]
[1752066015455,0.9321,2664.9,2664.8,0.75043]
[1752066015660,1.6119,2664.9,2664.8,3.95823]
[1752066015855,1.6119,2664.9,2664.8,0.75043]
[1752066016959,1.6119,2664.9,2664.5,3.2078]
[1752066017157,0.6798,2664.6,2664.3,0.00563327]
[1752066017357,1.282,2664.5,2664.3,0.00563327]
[1752066017654,0.75054,2664.4,2664.3,0.00563327]
[1752066018257,2.03254,2664.4,2664.3,0.00563327]
[1752066018655,4.09736192,2664.4,2664.3,0.00563327]
[1752066018861,4.09736192,2664.4,2663.3,3.10978]
[1752066018862,0.75071,2663.9,2663.4,5.73253]
[1752066019063,1.3055,2663.8,2663.7,0.75071]
[1752066020163,2.05621,2663.8,2663.7,0.75071]
[1752066020757,3.66741,2663.8,2663.7,0.75071]
[1752066021154,0.75074,2663.7,2663.6,0.75074]
[1752066021353,0.75078,2663.6,2663.5,0.75079]
[1752066021858,0.75084,2663.4,2663.3,0.75085]
[1752066022064,0.75086,2663.3,2663.2,0.75087]
[1752066022253,3.72896,2663.3,2663.2,0.75087]
[1752066022457,2.9781,2663.3,2663.2,0.75087]
[1752066022861,3.72895,2663.3,2663.2,0.75087]
[1752066023062,2.9781,2663.3,2663.2,0.75087]
[1752066023261,3.72895,2663.3,2663.2,0.75087]
[1752066024166,7.9781,2663.3,2662.8,3.2078]
[1752066024363,2.0375,2663.3,2662.9,0.75093]
[1752066024562,0.75092,2663.1,2663.0,0.75093]
[1752066024764,1.6112,2663.1,2663.0,0.75093]
[1752066024966,3.7301,2663.1,2663.0,0.75093]
[1752066025267,2.9792,2663.1,2663.0,0.75093]
[1752066026858,6.187,2663.1,2662.5,3.2078]
[1752066027061,0.7511,2662.4,2662.3,0.75113]
[1752066027262,0.75109,2662.5,2662.4,0.75109]
[1752066027462,2.36229,2662.5,2662.4,0.75109]
[1752066027670,0.75111,2662.4,2662.3,0.75111]
[1752066027863,1.69171,2662.4,2662.3,0.75111]
[1752066028068,2.36231,2662.4,2662.3,0.75111]
[1752066028265,1.6112,2662.4,2662.3,0.75111]
[1752066029465,0.75113,2662.3,2662.2,0.75114]
[1752066029666,1.42173,2662.3,2662.2,0.75114]
[1752066029867,2.36233,2662.3,2662.2,0.75114]
[1752066030467,1.6112,2662.3,2661.8,3.21155685]
[1752066030660,0.75121,2662.1,2662.0,0.75119]
[1752066030866,0.75124,2661.9,2661.8,0.00375685]
[1752066031066,1.42184,2661.9,2661.8,0.75502685]
[1752066031265,2.36244,2661.9,2661.8,0.75502685]
[1752066031563,1.6112,2661.9,2661.8,0.75502685]
[1752066031765,0.6706,2661.9,2661.8,0.75502685]
[1752066032268,1.6112,2661.9,2661.8,0.75502685]
[1752066032769,1.69174,2662.3,2662.2,0.75116]
[1752066032970,3.90798047,2662.3,2662.2,0.75116]
[1752066033670,0.75118,2662.2,2662.1,0.75117]
[1752066033869,2.36238,2662.2,2662.1,0.75117]
[1752066034468,1.6112,2662.2,2662.1,0.75117]
[1752066035066,0.94623327,2662.6,2662.5,0.75107]
[1752066035269,1.61683327,2662.6,2662.0,5.08583]
[1752066035463,0.75114,2662.4,2662.3,0.75111]
[1752066035767,0.75116,2662.3,2662.2,0.75114]
[1752066035970,2.36236,2662.3,2662.2,0.75114]
[1752066036371,1.6112,2662.3,2662.2,0.75114]
[1752066042277,0.6706,2662.3,2662.2,0.75114]
[1752066043373,0.94623327,2662.6,2662.5,0.75107]
[1752066043678,0.67623327,2662.6,2662.5,0.75107]
[1752066044569,1.61683327,2662.6,2662.5,0.75107]
[1752066044968,1.61683327,2662.6,2662.1,0.7143]
[1752066045171,0.7512,2662.1,2662.0,0.7512]
[1752066045378,0.75122,2662.0,2661.9,0.75122]
[1752066045573,3.63952,2662.0,2661.9,0.75122]
[1752066046581,2.8883,2662.0,2661.9,0.75122]
[1752066047279,1.9477,2662.0,2661.9,0.75122]
[1752066047877,0.6706,2662.0,2661.9,3.95902]
[1752066048082,0.6706,2662.0,2661.9,4.71242]
[1752066049483,2.2261429,2662.0,2661.9,4.71242]
[1752066052879,3.2252429,2662.0,2661.9,1.50462]
[1752066053075,3.2252429,2662.0,2661.8,0.75499685]
[1752066053284,4.6353829,2661.9,2661.8,0.75499685]
[1752066053584,4.5295429,2661.9,2661.8,0.75499685]
[1752066054586,5.2807829,2661.9,2661.8,0.75499685]
[1752066055487,4.5295429,2661.9,2661.8,0.75499685]
[1752066056089,5.2807829,2661.9,2661.8,0.75499685]
[1752066056686,4.5295429,2661.9,2661.8,0.75499685]
[1752066059687,5.2807829,2661.9,2661.8,0.75499685]
[1752066060086,4.5295429,2661.9,2661.8,0.75499685]
[1752066060284,5.2807829,2661.9,2661.8,0.00375685]
[1752066060483,3.75637,2661.8,2661.0,3.2078]
[1752066060690,1.87882,2660.9,2660.6,3.2078]
[1752066060888,3.8532,2660.7,2660.2,3.2078]
[1752066061182,0.9991,2660.6,2660.3,1.87924]
[1752066061388,0.65103327,2660.7,2660.6,0.75161]
[1752066062198,0.00563327,2660.7,2660.6,0.75161]
[1752066062494,0.9991,2661.2,2661.1,0.75147]
[1752066062692,3.2078,2661.3,2661.2,0.75144]
[1752066062894,0.6454,2661.3,2661.2,3.95924]
[1752066063095,1.6445,2661.3,2661.2,3.95924]
[1752066063296,3.2078,2661.6,2661.2,3.2078]
[1752066063600,1.56443325,2661.5,2661.4,0.75138]
[1752066063792,2.39584,2661.6,2661.5,0.75136]
[1752066063993,3.9602253,2661.6,2661.5,0.75136]
[1752066064505,2.39584,2661.6,2661.5,0.75136]
[1752066064800,3.96012198,2661.6,2661.5,0.75136]
[1752066064999,3.20878198,2661.6,2661.5,0.75136]
[1752066065999,0.9991,2661.6,2661.5,3.95916]
[1752066066501,1.6445,2661.6,2661.5,3.95916]
[1752066067000,3.2078,2661.8,2661.7,0.75127]
[1752066067198,5.41733938,2661.8,2661.3,0.7345]
[1752066067400,0.75137,2661.5,2661.4,0.75138]
[1752066067603,2.31533773,2661.6,2661.5,0.75135]
[1752066067803,2.3153311,2661.6,2661.5,0.75135]
[1752066068204,0.75137,2661.5,2661.4,0.75136]
[1752066068499,0.7514,2661.4,2661.3,0.75139]
[1752066068698,0.75143,2661.3,2661.2,0.75141]
[1752066068997,0.75146,2661.2,2661.1,0.75144]
[1752066069205,3.9599611,2661.2,2661.1,0.75144]
[1752066069703,3.2085011,2661.2,2661.1,0.75144]
[1752066069903,3.9599411,2661.2,2661.1,0.75144]
[1752066071505,3.2085011,2661.2,2661.1,0.75144]
[1752066072004,3.9599411,2661.2,2661.1,0.75144]
[1752066072498,0.75149,2661.1,2661.0,0.75147]
[1752066072699,5.84199236,2661.1,2660.4,1.87915]
[1752066072904,5.84199236,2661.1,2660.7,0.75154]
[1752066072905,0.75157,2660.8,2660.7,0.75154]
[1752066073103,2.39607,2660.8,2660.7,0.75154]
[1752066073801,3.21072611,2660.8,2660.7,0.75154]
[1752066074100,1.56622611,2660.8,2660.7,6.59063454]
[1752066074294,3.95925,2661.2,2661.1,0.75147]
[1752066074499,0.75148,2661.1,2660.8,2.56734]
[1752066074700,1.56598338,2661.0,2660.9,0.75152]
[1752066076301,2.31747338,2661.0,2660.9,0.75152]
[1752066076603,1.56598338,2661.0,2660.9,0.75152]
[1752066077808,3.21048338,2661.0,2660.9,0.75152]
[1752066078203,3.96197338,2661.0,2660.9,0.75152]
[1752066078398,1.6445,2661.0,2660.9,0.75152]
[1752066078599,3.21089817,2661.0,2660.9,0.75152]
[1752066078805,3.96238817,2661.0,2660.9,0.75152]
[1752066079208,3.21089817,2661.0,2660.9,0.75152]
[1752066079409,1.6445,2661.0,2660.9,0.75152]
[1752066080204,0.6454,2661.0,2660.9,0.75152]
[1752066080799,2.34099,2661.0,2660.9,0.75282]
[1752066081009,4.47350828,2661.0,2660.9,0.75282]
[1752066081311,2.9073,2661.0,2660.9,0.75282]
[1752066082009,1.5895,2661.0,2660.9,0.75282]
[1752066082308,0.6454,2661.0,2660.9,0.75282]
[1752066083907,1.5895,2661.0,2660.9,0.75152]
[1752066084108,4.43916053,2661.0,2660.9,0.75152]
[1752066085812,2.8729,2661.0,2660.9,0.75152]
[1752066086013,2.8729,2661.0,2660.9,0.75282]
[1752066086211,0.6454,2661.0,2660.9,0.75282]
[1752066086714,3.95916,2661.5,2661.4,0.75138]
[1752066086914,5.42893925,2661.5,2661.4,0.75268]
[1752066087112,2.22113925,2661.5,2661.4,0.75268]
[1752066087710,1.56723925,2661.5,2661.4,0.75268]
[1752066087910,2.22113925,2661.5,2661.4,0.75268]
[1752066088115,2.22143085,2661.5,2661.4,0.75268]
[1752066088316,0.6539,2661.5,2661.4,0.75268]
[1752066089416,0.6539,2661.5,2661.4,0.0013]
[1752066089616,0.6539,2661.5,2661.4,0.75268]
[1752066091311,1.598,2661.5,2661.4,0.75268]
[1752066092913,0.6539,2661.5,2661.4,0.75268]
[1752066095610,2.202,2661.8,2661.7,0.7513]
[1752066095821,4.42089013,2661.8,2661.7,0.7513]
[1752066096220,4.42089013,2661.8,2661.7,0.7527]
[1752066099218,2.21889013,2661.8,2661.7,0.7527]
[1752066099518,0.6539,2661.8,2661.7,0.7527]
[1752066100823,0.6539,2661.8,2661.7,2.14400116]
[1752066102425,0.9441,2662.2,2661.8,1.87814]
[1752066102626,1.598,2662.2,2662.1,0.75258]
[1752066102814,2.21677538,2662.2,2662.1,0.75258]
[1752066103415,0.6539,2662.2,2662.1,0.75258]
[1752066105724,1.598,2662.2,2662.1,0.75258]
[1752066105927,2.9598,2662.2,2662.1,0.75258]
[1752066109026,2.0157,2662.2,2662.1,0.75258]
[1752066109529,2.9691,2662.2,2662.1,0.75258]
[1752066109718,2.9691,2662.2,2662.1,0.75118]
[1752066109917,2.9691,2662.2,2662.1,0.75258]
[1752066110126,2.9691,2662.2,2662.1,0.75118]
[1752066112323,3.72026,2662.2,2661.9,5.08587]
[1752066112527,3.72026,2662.2,2662.0,0.75118]
[1752066112528,1.7046,2662.1,2662.0,0.75118]
[1752066112723,2.8669,2662.1,2662.0,0.75118]
[1752066113124,3.61808,2662.1,2662.0,0.75118]
[1752066113326,0.75121,2662.0,2661.9,0.75121]
[1752066113526,4.29601,2662.0,2661.9,0.75121]
[1752066115131,4.29601,2662.0,2661.6,3.2078]
[1752066115132,3.5448,2662.0,2661.6,3.2078]
[1752066115430,4.39288235,2661.9,2661.5,0.75133]
[1752066115622,1.37335,2661.6,2661.5,0.75133]
[1752066115824,2.32675,2661.6,2661.5,0.75133]
[1752066116033,3.8881689,2661.6,2661.5,0.75133]
[1752066116533,3.1368189,2661.6,2661.5,0.75133]
[1752066117122,4.4138189,2661.6,2661.5,0.75133]
[1752066117429,1.899,2661.6,2661.5,0.75133]
[1752066117637,0.622,2661.6,2661.5,0.75133]
[1752066118430,1.5754,2661.6,2661.5,0.75133]
[1752066118626,0.622,2661.6,2661.5,0.75133]
[1752066118833,0.9534,2661.8,2661.4,2.63002175]
[1752066119031,0.622,2661.8,2661.7,0.7513]
[1752066119734,0.622,2661.8,2661.7,1.402]
[1752066120232,1.2849,2662.0,2661.9,0.75124]
[1752066120427,3.4646815,2662.0,2661.9,0.75124]
[1752066121031,2.1797815,2662.0,2661.9,0.75124]
[1752066121231,2.1797815,2662.0,2661.9,3.95904]
[1752066122029,3.1331815,2662.0,2661.9,0.75124]
[1752066122533,2.1797815,2662.0,2661.9,0.75124]
[1752066122735,0.622,2662.0,2661.9,3.95904]
[1752066122935,4.1612,2662.4,2662.1,0.75118]
[1752066123130,0.622,2662.2,2662.1,0.75118]
[1752066123434,2.17938081,2662.2,2662.1,0.75118]
[1752066123937,3.13278081,2662.2,2662.1,0.75118]
[1752066124536,4.42578081,2662.2,2662.1,0.75118]
[1752066125034,4.31913011,2663.0,2662.9,0.75096]
[1752066125328,6.19203011,2663.0,2662.9,0.75096]
[1752066126733,2.8263,2663.0,2662.9,0.75096]
[1752066128630,1.8774,2662.9,2662.0,3.2078]
[1752066128829,0.622,2662.1,2661.7,3.2078]
[1752066129031,2.2416,2662.0,2661.9,0.75124]
[1752066129235,2.8636,2662.0,2661.9,0.75124]
[1752066129436,3.61481,2662.0,2661.9,0.75124]
[1752066129938,2.8636,2662.0,2661.9,0.75124]
[1752066130834,1.9102,2662.0,2661.9,0.75124]
[1752066131333,2.8636,2662.0,2661.9,0.75124]
[1752066131534,1.9102,2662.0,2661.9,0.75124]
[1752066132339,2.8636,2662.0,2661.9,0.75124]
[1752066135438,0.622,2662.0,2661.9,0.75124]
[1752066135844,0.9534,2662.4,2662.1,1.87795]
[1752066136144,0.622,2662.3,2662.2,6.58932169]
[1752066136338,2.3176,2662.7,2662.6,0.75104]
[1752066136644,2.9396,2662.7,2662.6,0.75104]
[1752066137031,4.48174147,2662.7,2662.6,0.75104]
[1752066139539,2.16414147,2662.7,2662.6,0.75104]
[1752066140240,0.622,2662.7,2662.6,0.75104]
[1752066140645,2.35731,2662.7,2662.6,0.75104]
[1752066140840,1.9297,2662.7,2662.6,0.75104]
[1752066141047,2.914,2662.7,2662.6,0.75104]
[1752066141847,0.622,2662.7,2662.6,0.75104]
[1752066142336,1.6063,2662.7,2662.6,0.75104]
[1752066143741,1.3077,2662.9,2662.8,0.75099]
[1752066143938,2.17597193,2662.9,2662.8,0.75099]
[1752066144450,3.16027193,2662.9,2662.8,0.75099]
[1752066145647,2.9858,2662.9,2662.8,0.75099]
[1752066145946,4.52501356,2662.9,2662.8,0.75099]
[1752066149052,7.73281356,2662.9,2662.6,0.75101]
[1752066149244,0.75103,2662.7,2662.6,0.75101]
[1752066149450,2.92664356,2662.7,2662.6,0.75101]
[1752066149646,4.52511356,2662.7,2662.3,0.6595]
[1752066149955,3.26543757,2662.6,2662.5,0.75105]
[1752066150144,5.26703757,2662.6,2662.5,0.75105]
[1752066150351,0.6364,2662.6,2662.5,0.75105]
[1752066150548,1.6207,2662.6,2662.5,0.75105]
[1752066150951,1.6207,2662.6,2662.5,2.14178785]
[1752066151351,0.6364,2662.6,2662.5,2.14178785]
[1752066151552,0.9843,2662.9,2662.8,0.75099]
[1752066151751,32.20923785,2662.9,2661.7,5.8663848]
[1752066151944,32.20923785,2662.9,2662.2,0.75115]
[1752066151945,3.2078,2662.3,2662.2,0.75115]
[1752066152149,3.8442,2662.3,2662.2,0.75115]
[1752066152650,3.8442,2662.3,2662.2,1.40285]
[1752066152951,0.6364,2662.3,2662.2,1.40285]
[1752066156448,2.16794766,2662.3,2662.2,1.40285]
[1752066157047,2.16794766,2662.3,2662.2,2.79358785]
[1752066157451,2.16794766,2662.3,2662.2,1.40285]
[1752066157855,0.6364,2662.3,2662.2,1.40285]
[1752066160356,2.3495,2662.6,2662.5,0.75107]
[1752066160557,4.51841844,2662.6,2662.5,0.75107]
[1752066161961,4.51841844,2662.6,2662.5,2.14180785]
[1752066162759,2.16891844,2662.6,2662.5,2.14180785]
[1752066165861,3.15321844,2662.6,2662.5,2.14180785]
[1752066166864,2.16891844,2662.6,2662.5,2.14180785]
[1752066167464,1.53251844,2662.6,2662.5,2.14180785]
[1752066167653,0.9843,2663.0,2662.9,0.75096]
[1752066167859,3.15347332,2663.0,2662.9,2.14169785]
[1752066169261,1.6207,2663.0,2662.9,2.14169785]
[1752066169468,4.49469873,2663.0,2662.9,2.14169785]
[1752066169653,4.49469873,2663.0,2662.9,0.75096]
[1752066172066,4.49469873,2663.0,2662.9,2.14169785]
[1752066172965,3.17009873,2663.0,2662.9,0.75096]
[1752066173266,2.9751,2663.0,2662.9,0.75096]
[1752066176067,0.6364,2663.0,2662.9,0.75096]
[1752066176570,1.6382,2663.0,2662.9,0.75096]
[1752066176968,1.6382,2663.0,2662.9,2.14169785]
[1752066177360,1.6382,2663.0,2662.9,0.75096]
[1752066180167,0.6364,2663.0,2662.9,0.75096]
[1752066180470,4.2096,2663.4,2663.3,0.75084]
[1752066180662,5.7420343,2663.4,2663.3,0.75084]
[1752066180864,3.2041343,2663.4,2663.3,0.75084]
[1752066181064,3.2041343,2663.4,2663.3,3.95864]
[1752066181270,1.6717,2663.4,2663.3,3.95864]
[1752066182069,1.941,2663.9,2663.8,0.7507]
[1752066182269,1.6717,2663.9,2663.8,2.14143785]
[1752066182566,3.2078,2664.3,2664.2,0.75059]
[1752066182770,5.4087057,2664.3,2664.2,2.14132785]
[1752066183272,6.6647057,2664.3,2663.8,1.87675]
[1752066183468,1.5310057,2664.2,2664.1,0.75062]
[1752066183674,2.7870057,2664.2,2664.1,0.75062]
[1752066183874,2.9277,2664.2,2664.1,0.75062]
[1752066185068,2.9277,2664.2,2663.6,4.59853785]
[1752066185374,3.95846,2664.0,2663.8,0.75068]
[1752066185567,2.9277,2663.9,2663.8,0.75068]
[1752066185769,3.5797,2663.9,2663.8,0.75068]
[1752066185970,3.5797,2663.9,2663.6,0.75074]
[1752066186171,0.75082,2663.4,2663.3,0.75083]
[1752066186366,1.6717,2663.4,2663.3,0.75083]
[1752066186773,1.6717,2663.4,2663.3,1.42503]
[1752066186975,1.6717,2663.4,2663.3,0.75083]
[1752066188878,3.0339,2663.4,2663.3,0.75083]
[1752066189776,1.3622,2663.4,2663.3,0.75083]
[1752066189978,3.0339,2663.4,2663.3,0.75083]
[1752066190470,1.6717,2663.4,2663.3,0.75083]
[1752066191575,0.6699,2663.4,2663.3,0.75083]
[1752066194178,3.2078,2663.7,2663.6,0.75076]
[1752066194476,3.8777,2663.7,2663.6,2.14149785]
[1752066194673,0.6699,2663.7,2663.6,2.14149785]
[1752066196380,3.2078,2664.0,2663.9,0.75067]
[1752066196580,0.75069,2663.9,2663.8,0.75069]
[1752066196876,2.1970087,2663.9,2663.8,0.7507]
[1752066197083,3.19892365,2663.9,2663.8,0.7507]
[1752066197271,3.19927974,2663.9,2663.8,0.7507]
[1752066198179,1.6717,2663.9,2663.8,0.7507]
[1752066199185,3.19806824,2663.9,2663.8,0.7507]
[1752066199883,1.6717,2663.9,2663.8,0.7507]
[1752066200284,3.19822905,2663.9,2663.8,0.7507]
[1752066200484,1.6717,2663.9,2663.8,0.7507]
[1752066200681,2.42237,2663.9,2663.8,0.7507]
[1752066200985,4.62151377,2663.9,2663.8,0.7507]
[1752066204382,3.87084377,2663.9,2663.8,0.7507]
[1752066206185,4.62151377,2663.9,2663.8,0.7507]
[1752066206381,1.52654377,2663.9,2663.8,0.7507]
[1752066206584,3.17604377,2663.9,2663.8,0.7507]
[1752066206885,3.92671377,2663.9,2663.8,0.7507]
[1752066207885,0.7507,2663.8,2663.3,1.87711]
[1752066208087,0.75095,2663.0,2662.9,0.75094]
[1752066208288,2.14164785,2663.2,2663.1,0.7509]
[1752066208487,2.93382388,2663.2,2663.1,0.7509]
[1752066209086,2.18291388,2663.2,2663.1,0.7509]
[1752066209585,3.52001388,2663.2,2663.1,0.7509]
[1752066209788,4.27088388,2663.2,2663.1,0.7509]
[1752066209985,5.92038388,2663.2,2663.1,0.7509]
[1752066210690,5.92039388,2663.2,2663.1,0.7509]
[1752066214689,0.75093,2663.1,2663.0,0.75091]
[1752066214887,0.75096,2663.0,2662.9,0.75093]
[1752066215092,6.12617388,2663.0,2662.9,0.75093]
[1752066215292,8.38987388,2663.0,2662.9,0.75093]
[1752066216288,6.85556,2663.0,2662.9,0.75093]
[1752066218391,0.75096,2662.9,2662.8,1.41467]
[1752066218584,3.64756,2662.9,2662.8,1.41467]
[1752066219190,2.8966,2662.9,2662.8,1.41467]
[1752066220091,3.64756,2662.9,2662.8,1.41467]
[1752066220790,2.8966,2662.9,2662.8,2.80650785]
[1752066220991,0.6331,2662.9,2662.8,2.80650785]
[1752066221584,3.2078,2663.0,2662.8,2.80650785]
[1752066221585,3.2078,2663.0,2662.9,0.75096]
[1752066221790,5.20194,2663.4,2663.3,0.75085]
[1752066221991,7.36959804,2663.4,2663.3,2.14158785]
[1752066222289,7.63515804,2663.4,2663.3,2.14268785]
[1752066222494,5.37545804,2663.4,2663.3,2.14268785]
[1752066222699,5.37545804,2663.4,2663.3,2.14158785]
[1752066222993,5.37545804,2663.4,2663.3,2.14268785]
[1752066223392,5.37545804,2663.4,2663.3,2.14158785]
[1752066223591,5.37545804,2663.4,2663.3,2.14268785]
[1752066223894,3.8409,2663.4,2663.3,2.14268785]
[1752066224787,3.2078,2663.4,2663.3,2.14268785]
[1752066225095,3.2078,2663.8,2663.5,1.87697]
[1752066225291,3.8409,2663.8,2663.7,1.39073785]
[1752066225491,6.39261684,2663.8,2663.7,2.14256785]
[1752066225692,6.39261684,2663.8,2663.7,2.14146785]
[1752066225893,6.39261684,2663.8,2663.7,2.14256785]
[1752066226598,5.37621684,2663.8,2663.7,2.14256785]
[1752066227399,5.37621684,2663.8,2663.7,2.23510823]
[1752066227796,6.39261684,2663.8,2663.7,2.23510823]
[1752066229999,6.39261684,2663.8,2663.7,0.84437038]
[1752066230703,6.39261684,2663.8,2663.7,1.50767038]
[1752066230995,6.39261684,2663.8,2663.7,1.50657038]
[1752066231197,7.14332684,2663.8,2663.7,0.75584038]
[1752066231904,7.14332684,2663.8,2663.7,1.50657038]
[1752066232099,8.39322684,2663.8,2663.7,1.50657038]
[1752066232397,8.39322684,2663.8,2663.7,0.09254038]
[1752066232602,8.39322684,2663.8,2663.7,0.84327038]
[1752066235505,7.64251684,2663.8,2663.7,0.84327038]
[1752066236196,5.37621684,2663.8,2663.7,0.84327038]
[1752066236903,1.53531684,2663.8,2663.7,0.84327038]
[1752066237504,5.27412,2664.1,2664.0,0.75065]
[1752066237708,0.75065,2664.0,2663.9,2.14139785]
[1752066237911,3.18080236,2664.0,2663.9,0.75066]
[1752066238107,3.93145236,2664.0,2663.9,0.75066]
[1752066238510,4.46800236,2664.0,2663.9,0.84320038]
[1752066238706,4.46800236,2664.0,2663.9,2.23393823]
[1752066238912,2.20650236,2664.0,2663.9,2.23393823]
[1752066240704,1.53320236,2664.0,2663.9,2.23393823]
[1752066240903,2.20650236,2664.0,2663.9,2.23393823]
[1752066241202,3.18080236,2664.0,2663.9,2.23393823]
[1752066241402,2.20650236,2664.0,2663.9,2.23393823]
[1752066241809,2.20560015,2664.0,2663.9,2.23393823]
[1752066242010,1.53230015,2664.0,2663.9,5.44173823]
[1752066242210,1.53230015,2664.0,2663.9,0.84320038]
[1752066242406,3.17990015,2664.0,2663.9,0.84320038]
[1752066242613,2.39825,2664.0,2663.9,0.09254038]
[1752066242812,6.62026877,2664.0,2663.9,0.09254038]
[1752066243410,5.08808785,2664.0,2663.9,0.09254038]
[1752066243810,5.08808785,2664.0,2663.9,0.84322038]
[1752066244012,3.69735,2664.0,2663.9,0.84322038]
[1752066244213,5.22832935,2664.0,2663.9,0.84322038]
[1752066244717,4.47767935,2664.0,2663.9,0.84322038]
[1752066245717,5.22832935,2664.0,2663.9,0.84322038]
[1752066247620,4.47767935,2664.0,2663.9,0.84322038]
[1752066247920,3.50337935,2664.0,2663.9,0.84322038]
[1752066248419,3.50337935,2664.0,2663.9,1.47562038]
[1752066248613,4.47767935,2664.0,2663.9,1.47562038]
[1752066250620,2.20427935,2664.0,2663.9,1.47562038]
[1752066250820,1.53097935,2664.0,2663.9,1.47562038]
[1752066252318,1.53097935,2664.0,2663.9,1.48843915]
[1752066254120,3.2078,2664.4,2664.3,0.75057]
[1752066254313,2.20187115,2664.4,2664.3,2.246667]
[1752066254525,1.52857115,2664.4,2664.3,0.85592915]
[1752066254724,1.52857115,2664.4,2664.3,1.50602915]
[1752066258328,0.9743,2664.8,2664.7,0.75045]
[1752066258624,0.6604116,2664.8,2664.7,2.14118785]
[1752066258828,3.2078,2665.2,2664.8,1.87607]
[1752066258829,0.9743,2665.2,2664.8,1.87607]
[1752066259030,0.6733,2664.9,2664.8,0.6531]
[1752066259230,3.8811,2664.9,2664.8,0.75042]
[1752066259430,4.5641,2664.9,2664.8,0.85577915]
[1752066259830,5.3145,2664.9,2664.8,0.85577915]
[1752066260126,4.5641,2664.9,2664.8,0.85577915]
[1752066260326,5.3145,2664.9,2664.8,0.10535915]
[1752066260525,4.5641,2664.9,2664.8,0.10535915]
[1752066261031,5.3145,2664.9,2664.8,0.10535915]
[1752066261228,3.8908,2664.9,2664.8,0.10535915]
[1752066261625,4.64119,2664.9,2664.8,0.10535915]